bitfinex-derivatives/quotes_SOLF0:USTF0_20241016
["timestamp","ask_amount","ask_price","bid_price","bid_amount"]
[1729077484538,1.3102,156.46,156.38,15.35]
[1729077484955,4.5114282,156.46,156.38,15.35]
[1729077485651,4.5114282,156.46,156.4,15.35]
[1729077485851,4.5114282,156.46,156.4,20.57]
[1729077486147,4.5114282,156.46,156.4,5.22]
[1729077486346,4.5114282,156.46,156.4,20.57]
[1729077487147,4.5114282,156.46,156.38,5.22]
[1729077488246,4.5114282,156.46,156.39,15.35]
[1729077495949,4.5114282,156.46,156.42,9.82]
[1729077496345,3.11082317,156.49,156.45,9.82]
[1729077496558,3.11082317,156.49,156.48,9.82]
[1729077496955,6.23897377,156.49,156.48,9.82]
[1729077497749,6.23897377,156.49,156.48,15.35]
[1729077498659,3.11082317,156.49,156.48,15.35]
[1729077499062,3.26526736,156.5,156.48,15.35]
[1729077500758,2.67708746,156.51,156.48,15.35]
[1729077501064,5.79724604,156.51,156.48,15.35]
[1729077503965,5.79724604,156.51,156.46,15.35]
[1729077504168,5.79724604,156.51,156.47,5.22]
[1729077507155,5.79724604,156.51,156.48,15.35]
[1729077507357,5.79724604,156.51,156.47,5.22]
[1729077507564,5.79724604,156.51,156.48,15.35]
[1729077509571,5.79724604,156.51,156.46,15.35]
[1729077509774,5.79724604,156.51,156.44,5.22]
[1729077515078,5.79724604,156.51,156.44,20.57]
[1729077515782,5.79724604,156.51,156.46,15.35]
[1729077516576,5.79724604,156.51,156.48,15.35]
[1729077516786,5.79724604,156.51,156.49,5.22]
[1729077517585,1.0,156.59,156.5,30.7]
[1729077517784,13.00845265,156.66,156.58,30.7]
[1729077517986,16.05922806,156.68,156.65,15.35]
[1729077518283,3.63901486,156.71,156.67,15.35]
[1729077518588,3.63901486,156.71,156.68,5.22]
[1729077518887,6.11978501,156.7,156.68,5.22]
[1729077519275,2.86516164,156.7,156.68,5.22]
[1729077520992,2.86516164,156.7,156.67,15.35]
[1729077522184,2.86516164,156.7,156.69,15.35]
[1729077522387,4.16953049,156.73,156.69,15.35]
[1729077522577,4.16953049,156.73,156.72,15.35]
[1729077522777,7.30050253,156.73,156.72,15.35]
[1729077523589,3.27918079,156.74,156.72,15.35]
[1729077523786,6.50464383,156.74,156.72,15.35]
[1729077525686,3.27918079,156.74,156.73,5.22]
[1729077525991,7.54780702,156.77,156.73,5.22]
[1729077526285,3.30816895,156.79,156.76,15.35]
[1729077526896,4.20792973,156.78,156.76,15.35]
[1729077527203,4.20792973,156.78,156.77,5.54]
[1729077527400,4.20792973,156.78,156.76,15.35]
[1729077530784,4.20792973,156.78,156.75,5.54]
[1729077530988,4.20792973,156.78,156.74,15.35]
[1729077531307,4.20792973,156.78,156.74,20.89]
[1729077531890,6.96282973,156.78,156.73,5.54]
[1729077532600,6.96282973,156.78,156.72,5.54]
[1729077534602,6.96282973,156.78,156.75,15.35]
[1729077534796,4.20792973,156.78,156.77,15.35]
[1729077535100,3.30816895,156.79,156.77,15.35]
[1729077535295,3.22315426,156.78,156.77,15.35]
[1729077535804,3.30816895,156.79,156.77,15.35]
[1729077536100,6.46463286,156.79,156.77,15.35]
[1729077538499,6.46463286,156.79,156.73,15.35]
[1729077538701,3.30816895,156.79,156.71,20.87]
[1729077539002,2.7285,156.78,156.69,15.35]
[1729077539608,2.7285,156.78,156.71,15.35]
[1729077541813,2.7285,156.78,156.71,20.87]
[1729077544809,2.7285,156.78,156.71,5.52]
[1729077545005,2.7285,156.78,156.63,68.92]
[1729077545006,15.35,156.77,156.67,20.87]
[1729077545316,5.52,156.76,156.67,20.87]
[1729077545504,5.52,156.76,156.67,15.35]
[1729077545906,15.35,156.75,156.63,68.92]
[1729077546113,15.35,156.75,156.65,15.35]
[1729077547816,15.35,156.71,156.56,5.52]
[1729077548014,15.35,156.71,156.61,15.35]
[1729077548015,9.6708,156.7,156.61,15.35]
[1729077548211,9.6708,156.7,156.52,15.35]
[1729077548212,9.6708,156.7,156.63,15.35]
[1729077548613,5.52,156.69,156.63,15.35]
[1729077549525,20.87,156.69,156.6,15.35]
[1729077550516,20.87,156.69,156.59,5.52]
[1729077555518,15.35,156.65,156.56,15.35]
[1729077555826,15.35,156.63,156.52,15.35]
[1729077556020,15.35,156.61,156.52,15.35]
[1729077556222,15.35,156.61,156.51,5.54]
[1729077556223,5.54,156.6,156.51,5.54]
[1729077556425,15.35,156.58,156.5,15.35]
[1729077556721,15.35,156.58,156.48,20.89]
[1729077559215,15.35,156.56,156.48,20.89]
[1729077559618,20.89,156.56,156.48,20.89]
[1729077559920,24.06016809,156.56,156.48,20.89]
[1729077560614,18.52016809,156.56,156.48,20.89]
[1729077560814,5.54,156.55,156.48,20.89]
[1729077561622,5.54,156.55,156.44,5.54]
[1729077561824,15.35,156.54,156.45,15.35]
[1729077562019,19.531,156.54,156.45,15.35]
[1729077562332,4.181,156.54,156.47,15.35]
[1729077567026,2.7601,156.54,156.47,15.35]
[1729077568732,2.7601,156.54,156.46,5.54]
[1729077571232,15.35,156.52,156.4,68.96]
[1729077571426,15.35,156.52,156.42,15.35]
[1729077573139,5.54,156.53,156.44,15.35]
[1729077575141,5.54,156.53,156.4,68.96]
[1729077575142,15.35,156.52,156.42,20.89]
[1729077575340,16.6683,156.52,156.42,20.89]
[1729077575744,16.6683,156.52,156.13,6.419]
[1729077575745,15.35,156.46,156.27,225.0]
[1729077576036,5.54,156.47,156.38,15.35]
[1729077576337,5.54,156.49,156.39,5.54]
[1729077576838,8.3114,156.49,156.39,5.54]
[1729077577435,15.35,156.48,156.39,5.54]
[1729077577636,18.56675386,156.48,156.39,5.54]
[1729077578139,3.21675386,156.48,156.39,5.54]
[1729077578335,8.3114,156.49,156.39,5.54]
[1729077579441,5.54,156.48,156.39,5.54]
[1729077579741,8.80610242,156.48,156.39,5.54]
[1729077580641,24.15610242,156.48,156.39,5.54]
[1729077583940,8.80610242,156.48,156.36,15.35]
[1729077584141,15.35,156.46,156.36,15.35]
[1729077584342,15.35,156.46,156.36,20.91]
[1729077585543,15.35,156.46,156.36,15.35]
[1729077585735,5.52,156.45,156.36,15.35]
[1729077585937,5.52,156.45,156.35,15.35]
[1729077585938,15.35,156.44,156.35,15.35]
[1729077586946,15.35,156.4,156.31,5.52]
[1729077587144,24.07382508,156.4,156.31,5.52]
[1729077587350,24.07382508,156.4,156.29,5.52]
[1729077587351,15.35,156.38,156.29,5.52]
[1729077588848,2.6955,156.39,156.3,15.35]
[1729077589749,2.6955,156.39,156.29,5.52]
[1729077589947,2.6955,156.39,156.32,15.35]
[1729077590845,18.0455,156.39,156.3,15.35]
[1729077591548,5.52,156.38,156.3,15.35]
[1729077591748,5.52,156.38,156.29,5.52]
[1729077591944,18.0455,156.39,156.29,5.52]
[1729077592250,15.35,156.37,156.29,5.52]
[1729077594050,15.35,156.37,156.28,15.35]
[1729077594251,15.35,156.37,156.28,20.87]
[1729077596148,5.52,156.38,156.28,20.87]
[1729077596650,6.8607,156.38,156.28,20.87]
[1729077597147,15.35,156.36,156.26,15.35]
[1729077597338,15.35,156.34,156.26,20.87]
[1729077597748,15.35,156.34,156.26,15.35]
[1729077598147,20.87,156.34,156.25,5.52]
[1729077598556,15.35,156.32,156.25,5.52]
[1729077598861,18.47723281,156.32,156.25,5.52]
[1729077600349,18.47723281,156.32,156.22,134.75122499]
[1729077600653,1.3071,156.31,156.24,15.35]
[1729077600851,1.3071,156.31,156.24,20.87]
[1729077603661,3.12723281,156.32,156.26,15.35]
[1729077603963,8.2665,156.36,156.28,15.35]
[1729077606157,2.7265,156.36,156.3,15.35]
[1729077606356,1.3108,156.36,156.3,15.35]
[1729077606668,1.3231,156.39,156.32,15.35]
[1729077606870,1.3231,156.39,156.33,5.54]
[1729077608764,3.20382508,156.4,156.33,5.54]
[1729077608959,5.54,156.42,156.33,5.54]
[1729077609168,5.54,156.42,156.34,15.35]
[1729077609560,8.66307327,156.42,156.34,15.35]
[1729077609955,3.12307327,156.42,156.34,15.35]
[1729077610160,16.6731,156.43,156.34,15.35]
[1729077610358,19.79969205,156.43,156.34,15.35]
[1729077610967,15.35,156.41,156.33,5.54]
[1729077611167,15.35,156.41,156.3,15.35]
[1729077611353,15.35,156.39,156.31,5.54]
[1729077611753,15.35,156.37,156.31,5.54]
[1729077612154,15.35,156.37,156.28,15.35]
[1729077612155,2.7275,156.36,156.26,15.35]
[1729077612371,2.7275,156.36,156.27,5.54]
[1729077613073,15.35,156.39,156.28,15.35]
[1729077613369,15.35,156.39,156.3,15.35]
[1729077613561,15.35,156.39,156.31,5.54]
[1729077615659,1.3221,156.4,156.31,5.54]
[1729077616168,1.3221,156.4,156.32,15.35]
[1729077618468,1.3221,156.4,156.31,5.54]
[1729077619073,15.35,156.39,156.28,15.35]
[1729077619264,1.3221,156.4,156.29,5.4]
[1729077619265,15.35,156.36,156.29,5.4]
[1729077620769,1.3221,156.4,156.29,5.4]
[1729077621072,15.35,156.39,156.29,5.4]
[1729077621871,15.35,156.39,156.3,15.35]
[1729077622173,1.3221,156.4,156.3,15.35]
[1729077624378,1.3221,156.4,156.31,5.4]
[1729077625068,1.3221,156.4,156.3,15.35]
[1729077625272,1.3221,156.4,156.31,5.4]
[1729077625575,15.35,156.39,156.31,5.4]
[1729077626180,15.35,156.39,156.3,15.35]
[1729077626383,15.35,156.39,156.31,5.4]
[1729077627181,15.35,156.39,156.3,15.35]
[1729077627485,15.35,156.39,156.31,5.4]
[1729077628074,15.35,156.39,156.3,15.35]
[1729077628279,15.35,156.39,156.31,5.4]
[1729077630186,15.35,156.39,156.32,5.4]
[1729077631078,15.35,156.39,156.28,15.35]
[1729077631280,15.35,156.39,156.31,5.4]
[1729077632070,15.35,156.39,156.28,15.35]
[1729077632271,15.35,156.39,156.31,5.4]
[1729077642995,1.3221,156.4,156.32,15.35]
[1729077643189,2.7803,156.42,156.36,15.35]
[1729077643393,2.7803,156.42,156.36,20.75]
[1729077644201,2.7803,156.42,156.36,5.4]
[1729077644386,2.7803,156.42,156.33,15.35]
[1729077644699,15.35,156.41,156.34,5.4]
[1729077644891,16.7231,156.41,156.34,5.4]
[1729077645698,16.7231,156.41,156.34,5.26]
[1729077646700,1.3731,156.41,156.34,5.26]
[1729077646890,1.3731,156.41,156.24,119.39475108]
[1729077646891,16.7231,156.41,156.31,15.35]
[1729077647095,15.35,156.38,156.32,5.26]
[1729077650694,15.35,156.38,156.31,5.26]
[1729077656309,15.35,156.38,156.29,15.35]
[1729077656602,15.35,156.38,156.3,5.26]
[1729077658718,16.7231,156.41,156.31,15.35]
[1729077659207,1.3731,156.41,156.33,15.35]
[1729077659400,1.3731,156.41,156.34,5.26]
[1729077659812,1.3731,156.41,156.38,9.82]
[1729077660013,1.3731,156.41,156.38,0.3287308]
[1729077661708,1.3731,156.41,156.37,9.82]
[1729077661902,1.3731,156.41,156.34,20.61]
[1729077666613,2.7803,156.42,156.34,20.61]
[1729077666814,3.12659205,156.43,156.4,15.35]
[1729077667114,15.35,156.51,156.42,15.35]
[1729077668110,15.35,156.51,156.41,5.26]
[1729077669016,15.35,156.51,156.42,15.35]
[1729077669218,4.2504,156.52,156.42,15.35]
[1729077674618,4.2504,156.52,156.42,15.35]
[1729077675315,15.35,156.51,156.42,15.35]
[1729077675517,15.35,156.51,156.41,5.26]
[1729077676927,15.35,156.51,156.4,15.35]
[1729077677127,15.35,156.51,156.43,15.35]
[1729077677922,4.2504,156.52,156.45,15.35]
[1729077678232,4.2504,156.52,156.46,5.24]
[1729077679332,2.8463,156.52,156.46,5.24]
[1729077680732,15.35,156.51,156.47,5.24]
[1729077681428,15.35,156.51,156.43,15.35]
[1729077681625,15.35,156.51,156.46,5.24]
[1729077681927,15.35,156.51,156.43,15.35]
[1729077682131,15.35,156.51,156.44,5.24]
[1729077682432,15.35,156.51,156.45,5.24]
[1729077685332,2.8463,156.52,156.45,5.24]
[1729077685638,3.20670334,156.56,156.5,15.35]
[1729077685827,15.35,156.6,156.5,20.59]
[1729077686032,18.47139837,156.6,156.5,20.59]
[1729077687843,18.47139837,156.6,156.51,15.35]
[1729077687844,3.12139837,156.6,156.51,15.35]
[1729077688045,3.12139837,156.6,156.5,5.24]
[1729077688046,2.8261,156.61,156.53,15.35]
[1729077688347,2.8261,156.61,156.54,5.24]
[1729077688643,6.05389878,156.61,156.55,15.35]
[1729077688845,2.8261,156.61,156.55,15.35]
[1729077689036,3.26773888,156.61,156.57,15.35]
[1729077689236,1.3339,156.63,156.58,5.24]
[1729077689735,4.56142324,156.63,156.58,5.24]
[1729077690843,3.22752324,156.63,156.58,5.24]
[1729077691040,4.087,156.67,156.58,5.24]
[1729077691234,7.27331674,156.67,156.58,5.24]
[1729077692853,15.35,156.63,156.58,5.22]
[1729077695052,15.35,156.64,156.58,5.22]
[1729077696946,20.57,156.66,156.58,5.22]
[1729077698040,15.35,156.66,156.58,5.22]
[1729077699957,15.35,156.64,156.58,5.22]
[1729077700151,7.27331674,156.67,156.55,15.35]
[1729077700358,15.35,156.66,156.57,5.22]
[1729077704055,15.35,156.64,156.57,5.22]
[1729077704253,15.35,156.64,156.55,15.35]
[1729077704457,15.35,156.64,156.56,5.22]
[1729077707856,7.27331674,156.67,156.59,15.35]
[1729077708045,7.27331674,156.67,156.6,5.22]
[1729077708247,15.35,156.66,156.57,15.35]
[1729077708458,15.35,156.63,156.58,5.22]
[1729077708661,19.437,156.67,156.56,20.57]
[1729077708855,22.60363201,156.67,156.57,5.22]
[1729077710362,7.25363201,156.67,156.58,15.35]
[1729077711870,5.88613201,156.67,156.64,15.35]
[1729077712358,3.16663201,156.67,156.64,15.35]
[1729077712567,1.3954,156.71,156.64,15.35]
[1729077712762,1.3954,156.71,156.66,15.35]
[1729077712763,4.62433429,156.71,156.66,15.35]
[1729077712962,1.3954,156.71,156.66,20.57]
[1729077713560,4.65467241,156.71,156.7,3.1912]
[1729077713864,1.3954,156.71,156.7,3.1912]
[1729077714055,4.60581206,156.71,156.7,3.1912]
[1729077714254,3.21041206,156.71,156.7,3.1912]
[1729077714464,3.21041206,156.71,156.66,20.57]
[1729077714465,2.7243,156.72,156.71,3.191]
[1729077714669,5.85870708,156.72,156.71,3.191]
[1729077715370,5.85870708,156.72,156.7,3.1912]
[1729077717268,5.85870708,156.72,156.69,3.1914]
[1729077718276,3.13440708,156.72,156.67,5.22]
[1729077718460,16.7454,156.75,156.67,5.22]
[1729077719166,16.7454,156.75,156.71,3.1908]
[1729077719365,16.7454,156.75,156.67,5.22]
[1729077719570,16.7454,156.75,156.74,3.1904]
[1729077719770,16.7454,156.75,156.67,5.22]
[1729077720366,16.7454,156.75,156.72,3.1908]
[1729077720570,16.7454,156.75,156.67,5.22]
[1729077721073,16.7454,156.75,156.71,3.1909]
[1729077721273,16.7454,156.75,156.67,5.22]
[1729077721471,16.7454,156.75,156.66,15.35]
[1729077721672,15.35,156.72,156.55,119.15263396]
[1729077721871,15.35,156.69,156.61,15.35]
[1729077722172,15.35,156.69,156.56,5.22]
[1729077722173,15.35,156.67,156.59,15.35]
[1729077722482,15.35,156.67,156.6,5.22]
[1729077724076,15.35,156.69,156.6,5.22]
[1729077724979,15.35,156.67,156.57,15.35]
[1729077725164,15.35,156.67,156.58,5.22]
[1729077725778,15.35,156.67,156.58,20.57]
[1729077727575,15.35,156.67,156.58,5.22]
[1729077728877,15.35,156.67,156.56,15.35]
[1729077729072,15.35,156.67,156.57,5.22]
[1729077730387,15.35,156.67,156.58,15.35]
[1729077730885,1.3642,156.68,156.58,15.35]
[1729077731072,15.35,156.67,156.58,15.35]
[1729077733082,15.35,156.67,156.57,20.57]
[1729077733279,15.35,156.65,156.57,15.35]
[1729077733482,15.35,156.63,156.57,5.22]
[1729077733790,15.35,156.61,156.57,5.22]
[1729077733981,15.35,156.59,156.5,15.35]
[1729077734186,1.3266,156.62,156.51,5.22]
[1729077734483,15.35,156.6,156.51,5.22]
[1729077735174,15.35,156.58,156.52,5.22]
[1729077735384,2.6595,156.57,156.52,5.22]
[1729077735785,2.6595,156.57,156.51,5.22]
[1729077736089,15.35,156.56,156.51,5.22]
[1729077737082,15.35,156.56,156.47,119.21456427]
[1729077737287,15.35,156.54,156.47,124.43456427]
[1729077737481,15.35,156.52,156.47,5.22]
[1729077737786,18.49455366,156.52,156.47,5.22]
[1729077737976,18.49455366,156.52,156.38,68.98]
[1729077737977,15.35,156.5,156.38,68.98]
[1729077738177,2.8409,156.49,156.39,20.57]
[1729077738373,2.8409,156.49,156.39,15.35]
[1729077738374,15.35,156.48,156.39,15.35]
[1729077738678,15.35,156.46,156.4,5.22]
[1729077739289,16.7906,156.48,156.4,5.22]
[1729077741690,2.8409,156.49,156.41,15.35]
[1729077744484,18.1909,156.49,156.4,5.22]
[1729077745887,15.35,156.46,156.3,69.02]
[1729077746087,15.35,156.44,156.34,15.35]
[1729077746291,15.35,156.44,156.35,5.24]
[1729077746791,1.383,156.45,156.38,15.35]
[1729077746978,1.383,156.45,156.39,5.24]
[1729077747180,15.35,156.48,156.39,5.24]
[1729077747380,16.733,156.48,156.39,5.24]
[1729077750579,1.383,156.48,156.41,15.35]
[1729077751389,2.8409,156.49,156.42,15.35]
[1729077751589,2.8409,156.49,156.43,5.24]
[1729077751996,2.8409,156.49,156.44,15.35]
[1729077752191,3.16841879,156.5,156.43,5.24]
[1729077752390,1.3705,156.54,156.48,15.35]
[1729077752695,1.4096,156.53,156.47,5.24]
[1729077753294,4.68103879,156.53,156.47,5.24]
[1729077753588,1.4096,156.53,156.47,5.24]
[1729077753791,4.61422906,156.53,156.47,20.59]
[1729077753992,1.4096,156.53,156.47,20.59]
[1729077754692,4.61372941,156.53,156.47,20.59]
[1729077754880,1.4096,156.53,156.47,20.59]
[1729077755382,4.62715186,156.53,156.47,5.24]
[1729077755576,1.4096,156.53,156.47,5.24]
[1729077756191,4.57729706,156.53,156.47,5.24]
[1729077757189,1.3433,156.6,156.5,15.35]
[1729077757383,1.3433,156.6,156.52,15.35]
[1729077757581,1.3433,156.6,156.52,20.59]
[1729077757582,4.56276935,156.6,156.52,20.59]
[1729077757883,1.3433,156.6,156.5,15.35]
[1729077758085,15.35,156.59,156.5,15.35]
[1729077760385,4.59888212,156.6,156.5,15.35]
[1729077760984,15.35,156.58,156.48,15.35]
[1729077761185,2.8062,156.57,156.48,15.35]
[1729077762397,2.8062,156.57,156.5,15.35]
[1729077763498,4.59888212,156.6,156.52,15.35]
[1729077763994,15.35,156.58,156.5,15.35]
[1729077764587,15.35,156.56,156.41,250.0]
[1729077764800,15.35,156.56,156.45,15.35]
[1729077766390,15.35,156.56,156.48,3.1957]
[1729077766695,15.35,156.56,156.45,15.35]
[1729077767293,15.35,156.52,156.41,265.35]
[1729077767498,15.35,156.5,156.41,250.0]
[1729077767798,15.35,156.5,156.44,3.1964]
[1729077768490,15.35,156.5,156.43,3.1966]
[1729077768800,15.35,156.48,156.43,3.1966]
[1729077770500,15.35,156.48,156.42,3.1968]
[1729077770998,15.35,156.48,156.41,250.0]
[1729077771598,15.35,156.48,156.43,3.1966]
[1729077773899,15.35,156.48,156.44,3.1965]
[1729077774100,15.35,156.48,156.41,250.0]
[1729077775196,15.35,156.5,156.41,265.35]
[1729077775389,4.1059,156.51,156.48,3.1957]
[1729077776695,15.35,156.5,156.41,265.35]
[1729077777094,15.35,156.5,156.47,3.1958]
[1729077777301,15.35,156.48,156.41,250.0]
[1729077778004,15.35,156.48,156.43,3.1966]
[1729077778304,15.35,156.48,156.43,3.1967]
[1729077778698,2.6815,156.51,156.41,265.35]
[1729077779307,2.6815,156.51,156.47,3.1958]
[1729077779706,2.6815,156.51,156.41,265.35]
[1729077780301,2.6815,156.51,156.48,3.1957]
[1729077781115,2.6815,156.51,156.43,15.35]
[1729077781603,2.6815,156.51,156.48,3.1957]
[1729077782408,2.6815,156.51,156.41,265.35]
[1729077782602,15.35,156.48,156.41,250.0]
[1729077783109,15.35,156.48,156.46,3.196]
[1729077783306,15.35,156.5,156.41,250.0]
[1729077783509,2.6815,156.51,156.42,15.35]
[1729077783713,2.6815,156.51,156.49,3.1954]
[1729077783903,2.6815,156.51,156.42,15.35]
[1729077784308,2.6815,156.51,156.48,3.1957]
[1729077784610,2.6815,156.51,156.41,250.0]
[1729077784611,15.35,156.49,156.41,250.0]
[1729077785204,15.35,156.49,156.45,3.1962]
[1729077785816,15.35,156.49,156.46,3.1961]
[1729077789121,15.35,156.47,156.41,250.0]
[1729077789309,15.35,156.45,156.41,246.9]
[1729077789615,2.6815,156.51,156.41,250.097]
[1729077789616,15.35,156.43,156.41,250.097]
[1729077789817,18.50611987,156.43,156.41,250.097]
[1729077790211,3.15611987,156.43,156.41,246.9]
[1729077790418,15.35,156.45,156.41,246.9]
[1729077790916,18.52402512,156.45,156.41,246.9]
[1729077791513,18.52402512,156.45,156.42,3.1969]
[1729077792421,18.52402512,156.45,156.41,246.9]
[1729077793118,18.52402512,156.45,156.42,3.1968]
[1729077794215,18.52402512,156.45,156.43,3.1966]
[1729077796321,18.52402512,156.45,156.41,246.9]
[1729077797222,18.52402512,156.45,156.43,3.1967]
[1729077799930,18.52402512,156.45,156.44,3.1965]
[1729077799931,3.17402512,156.45,156.44,3.1965]
[1729077800226,15.35,156.49,156.41,262.25]
[1729077800426,15.35,156.49,156.48,3.1957]
[1729077800427,3.1409363,156.49,156.48,3.1957]
[1729077800722,15.35,156.49,156.41,246.9]
[1729077800920,18.5414676,156.49,156.41,246.9]
[1729077801636,21.7370676,156.49,156.46,3.196]
[1729077802224,21.7370676,156.49,156.41,246.9]
[1729077802225,18.5414676,156.49,156.41,246.9]
[1729077803925,21.7369676,156.49,156.41,246.9]
[1729077804434,21.7369676,156.49,156.45,3.1962]
[1729077804824,21.7369676,156.49,156.41,246.9]
[1729077805127,19.2,156.57,156.41,246.9]
[1729077805128,19.19,156.62,156.48,15.35]
[1729077805329,19.19,156.62,156.5,15.35]
[1729077805330,19.3914,156.6,156.5,15.35]
[1729077805531,19.3914,156.6,156.52,15.35]
[1729077805727,18.064,156.6,156.52,15.35]
[1729077805934,21.28018403,156.6,156.57,3.1938]
[1729077806442,21.28018403,156.6,156.52,15.35]
[1729077806624,21.28018403,156.6,156.58,3.1936]
[1729077808131,4.61358403,156.6,156.59,3.1935]
[1729077808431,3.21618403,156.6,156.59,3.1935]
[1729077808737,15.35,156.62,156.59,3.1935]
[1729077809140,18.53425654,156.62,156.59,3.1935]
[1729077811631,18.53425654,156.62,156.54,15.35]
[1729077811937,21.72725654,156.62,156.58,3.1935]
[1729077812242,15.35,156.6,156.52,15.35]
[1729077812425,15.35,156.6,156.58,3.1936]
[1729077812826,18.5378859,156.6,156.52,15.35]
[1729077813029,3.1878859,156.6,156.58,3.1936]
[1729077813239,18.543,156.62,156.58,3.1936]
[1729077813436,15.35,156.62,156.58,3.1936]
[1729077813640,18.47207065,156.62,156.52,15.35]
[1729077813942,15.35,156.6,156.52,15.35]
[1729077814141,15.35,156.58,156.5,15.35]
[1729077814336,18.5439,156.58,156.48,16.6986]
[1729077814740,18.5439,156.58,156.54,3.1944]
[1729077815244,15.35,156.55,156.5,3.1953]
[1729077815442,15.35,156.52,156.5,3.1953]
[1729077815843,18.56949124,156.52,156.44,15.35]
[1729077816039,3.21949124,156.52,156.51,3.1951]
[1729077816245,15.35,156.55,156.46,15.35]
[1729077817341,3.1942,156.56,156.49,3.1955]
[1729077817542,15.35,156.56,156.46,15.35]
[1729077818151,15.35,156.56,156.52,3.1948]
[1729077818443,15.35,156.58,156.54,3.1943]
[1729077819038,18.59814135,156.58,156.55,3.1941]
[1729077819250,3.24814135,156.58,156.5,15.35]
[1729077819448,18.5434,156.6,156.5,15.35]
[1729077819842,18.5438,156.58,156.49,1.3049]
[1729077820647,18.54509221,156.58,156.49,1.3049]
[1729077820850,15.35,156.56,156.49,1.3049]
[1729077821256,18.5442,156.56,156.51,3.1951]
[1729077821549,18.5442,156.56,156.49,1.3049]
[1729077821550,15.35,156.56,156.46,15.35]
[1729077821751,1.4037,156.6,156.46,15.35]
[1729077821953,18.5444,156.55,156.5,3.1952]
[1729077822251,18.5444,156.55,156.46,15.35]
[1729077822654,18.51397945,156.55,156.51,3.195]
[1729077822949,3.16397945,156.55,156.46,15.35]
[1729077823254,15.35,156.6,156.54,3.1945]
[1729077823651,3.194,156.57,156.53,3.1946]
[1729077824449,18.5437,156.58,156.48,15.35]
[1729077825047,18.5437,156.58,156.53,3.1946]
[1729077825445,15.35,156.58,156.48,15.35]
[1729077825648,5.95098503,156.61,156.44,1.4057]
[1729077825649,15.35,156.56,156.49,3.1955]
[1729077825844,15.35,156.54,156.44,16.7557]
[1729077826046,18.5451,156.52,156.44,1.4057]
[1729077826655,21.69952696,156.52,156.44,1.4057]
[1729077826853,18.50442696,156.52,156.46,3.1961]
[1729077827159,18.50442696,156.52,156.44,1.4057]
[1729077827556,3.15442696,156.52,156.48,3.1955]
[1729077827751,5.9262,156.53,156.48,3.1955]